fUST/lending_fUST_20241013
["ID","MTS","AMOUNT","RATE_DAILY","PERIOD"]
[340197622,1728822640256,-500.0,0.00028038,5]
[340197623,1728822640265,-500.0,0.00028038,5]
[340197624,1728822640275,-608.73119954,0.00028038,5]
[340197625,1728822640284,-500.0,0.00028038,5]
[340197626,1728822640293,-500.0,0.00028038,5]
[340197627,1728822640302,-500.0,0.00028038,5]
[340197629,1728822640311,-177.22660455,0.00028038,5]
[340197631,1728822640320,-500.0,0.00028038,5]
[340197632,1728822640329,-282.57553308,0.0002806,2]
[340197634,1728822640338,-420.0,0.00028104,2]
[340197636,1728822640350,-1418.32014619,0.00028245,2]
[340197638,1728822640359,-7064.85087336,0.00028453,2]
[340197639,1728822640368,-263.900301,0.000285,2]
[340197640,1728822640378,-166.227717,0.00028503,2]
[340197641,1728822640387,-289.811069,0.00028596,2]
[340197642,1728822640396,-4398.00840794,0.00028663,2]
[340197643,1728822640405,-7064.85087336,0.00028675,2]
[340197644,1728822640415,-282.57553307,0.00028828,2]
[340197645,1728822640424,-39503.4884006,0.00028844,4]
[340197646,1728822640433,-7938.13175052,0.00028844,4]
[340197647,1728822640442,-7064.85087336,0.00028865,2]
[340197648,1728822640451,-450.95952204,0.00028873,5]
[340197649,1728822640460,-378.27493434,0.00028873,5]
[340197650,1728822640469,-500.0,0.00028873,5]
[340197651,1728822640478,-499.999999,0.00028887,2]
[340197652,1728822640488,-436.76077567,0.00028946,5]
[340197653,1728822640497,-150.112233,0.00029,7]
[340197654,1728822640506,-5941.98393832,0.00029,2]
[340197655,1728822640516,-500.0,0.00029,2]
[340197656,1728822640525,-500.0,0.00029,2]
[340197657,1728822640535,-500.0,0.00029,2]
[340197658,1728822640544,-500.0,0.00029,2]
[340197659,1728822640553,-1418.32014619,0.00029097,2]
[340197660,1728822640563,-7064.85087336,0.00029159,2]
[340197661,1728822640573,-351.1825809,0.00029315,2]
[340197662,1728822640582,-150.112233,0.000294,10]
[340197663,1728822640593,-1000.0,0.00029407,5]
[340197664,1728822640603,-1000.0,0.00029407,5]
[340197665,1728822640614,-1000.0,0.00029407,5]
[340197666,1728822640625,-1000.0,0.00029407,5]
[340197667,1728822640635,-152.0,0.0002945,5]
[340197668,1728822640647,-150.0,0.000295,2]
[340197669,1728822640658,-7064.85087336,0.00029534,2]
[340197670,1728822640669,-282.57553307,0.00029596,2]
[340197671,1728822640744,-1500.0,0.00029606,5]
[340197672,1728822640755,-7064.85087336,0.00029713,2]
[340197673,1728822640766,-153.0,0.00029781,2]
[340197674,1728822640777,-153.0,0.00029782,2]
[340197675,1728822640787,-153.0,0.00029782,2]
[340197676,1728822640799,-153.0,0.00029782,2]
[340197677,1728822640810,-153.0,0.00029782,2]
[340197678,1728822640820,-153.0,0.00029782,2]
[340197679,1728822640830,-153.0,0.00029782,2]
[340197680,1728822640840,-153.0,0.00029782,2]
[340197681,1728822640851,-39503.4884006,0.0002979,4]
[340197682,1728822640860,-7938.13175052,0.0002979,4]
[340197683,1728822640871,-5353.729787,0.000298,2]
[340197684,1728822640883,-150.112233,0.000298,9]
[340197685,1728822640894,-1418.32014619,0.00029948,2]
[340197686,1728822640904,-587.0,0.00029951,2]
[340197687,1728822640917,-1000.0,0.0003,2]
[340197688,1728822640927,-604.90482038,0.0003,120]
[340197689,1728822640938,-150.112242,0.0003,10]
[340197690,1728822640948,-280.0,0.0003,2]
[340197691,1728822640959,-272.90402714,0.0003,2]
[340197692,1728822640970,-500.0,0.00030047,5]
[340197693,1728822640981,-504.14125426,0.00030047,5]
[340197694,1728822640991,-171.987,0.00030133,2]
[340197695,1728822641002,-150.754,0.00030133,2]
[340197696,1728822641012,-250.0,0.00030133,2]
[340197697,1728822641022,-151.0,0.00030136,7]
[340197698,1728822641034,-933.0,0.00030137,2]
[340197699,1728822641044,-1157.0,0.00030137,2]
[340197700,1728822641056,-268.671,0.00030137,25]
[340197701,1728822641067,-151.236,0.00030143,2]
[340197702,1728822641079,-150.112233,0.000302,6]
[340197703,1728822641089,-506.0,0.000304,6]
[340197704,1728822641100,-158.84453095,0.000304,6]
[340197705,1728822641111,-500.0,0.000304,6]
[340197706,1728822641124,-150.0,0.000304,6]
[340197707,1728822641134,-500.0,0.000304,6]
[340197708,1728822641147,-150.0,0.000304,6]
[340197709,1728822641157,-500.0,0.000304,6]
[340197710,1728822641168,-500.0,0.00030473,5]
[340197711,1728822641178,-1000.0,0.0003048,120]
[340197712,1728822641188,-1000.0,0.00030489,7]
[340197713,1728822641198,-5000.0,0.000305,5]
[340197714,1728822641209,-150.112233,0.000305,9]
[340197715,1728822641219,-150.0,0.000305,2]
[340197716,1728822641229,-150.112233,0.000306,10]
[340197717,1728822641241,-186.9983685,0.0003065,2]
[340197718,1728822641251,-1000.0,0.00030753,120]
[340197719,1728822641262,-152.0,0.0003078,2]
[340197720,1728822641272,-1418.32014619,0.000308,2]
[340197721,1728822641282,-152.0,0.0003085,120]
[340197722,1728822641293,-150.0,0.00030873,5]
[340197723,1728822641303,-79006.9768011,0.0003088,4]
[340197724,1728822641315,-15876.263501,0.0003088,4]
[340197725,1728822641325,-79006.9768011,0.0003089,4]
[340197726,1728822641334,-15876.263501,0.0003089,4]
[340197727,1728822641348,-55317.08532889,0.000309,2]
[340197728,1728822641361,-3541.40595774,0.000309,2]
[340197729,1728822641370,-587.0,0.00030914,2]
[340197730,1728822641379,-506.0,0.00030948,6]
[340197731,1728822641388,-500.0,0.00030948,6]
[340197732,1728822641398,-204.84257656,0.00030948,6]
[340197733,1728822641409,-797.94671726,0.00030948,6]
[340197734,1728822641419,-204.63921662,0.00030948,6]
[340197735,1728822641431,-500.0,0.00030948,6]
[340197736,1728822641441,-31752.5270021,0.0003096,4]
[340197737,1728822641451,-160.0,0.00030969,10]
[340197738,1728822641461,-151.0,0.0003097,7]
[340197739,1728822641472,-151.0,0.0003097,7]
[340197740,1728822641482,-151.0,0.0003097,7]
[340197741,1728822641494,-283.874491,0.0003097,7]
[340197742,1728822641504,-283.874491,0.0003097,7]
[340197743,1728822641513,-151.0,0.0003097,7]
[340197744,1728822641523,-151.0,0.0003097,7]
[340197745,1728822641534,-151.0,0.0003097,7]
[340197746,1728822641544,-168.602483,0.0003097,7]
[340197747,1728822641553,-168.602483,0.0003097,7]
[340197748,1728822641565,-151.0,0.0003097,7]
[340197749,1728822641577,-349.684566,0.0003097,7]
[340197750,1728822641587,-349.684566,0.0003097,7]
[340197751,1728822641597,-237.691551,0.0003097,7]
[340197752,1728822641608,-151.0,0.0003097,7]
[340197753,1728822641618,-237.691551,0.0003097,7]
[340197754,1728822641629,-583.953533,0.0003097,7]
[340197755,1728822641640,-583.953533,0.0003097,7]
[340197756,1728822641651,-500.0,0.00030973,5]
[340197757,1728822641660,-268.257743,0.0003098,7]
[340197758,1728822641671,-151.0,0.0003098,2]
[340197759,1728822641681,-173.66442,0.0003098,7]
[340197760,1728822641691,-151.0,0.0003098,7]
[340197761,1728822641703,-151.0,0.0003098,7]
[340197762,1728822641714,-151.0,0.0003098,7]
[340197763,1728822641724,-23814.3952516,0.0003098,4]
[340197764,1728822641733,-163.36209311,0.00030989,10]
[340197765,1728822641743,-151.0,0.0003099,7]
[340197766,1728822641753,-151.0,0.0003099,7]
[340197767,1728822641763,-151.0,0.0003099,7]
[340197768,1728822641773,-151.0,0.0003099,7]
[340197769,1728822641783,-151.0,0.0003099,7]
[340197770,1728822641793,-283.874491,0.0003099,7]
[340197771,1728822641802,-283.874491,0.0003099,7]
[340197772,1728822641811,-7938.13175052,0.0003099,4]
[340197773,1728822641821,-151.0,0.0003099,7]
[340197774,1728822641830,-151.0,0.0003099,7]
[340197775,1728822641840,-151.0,0.0003099,7]
[340197776,1728822641849,-168.602483,0.0003099,7]
[340197777,1728822641859,-168.602483,0.0003099,7]
[340197778,1728822641868,-151.0,0.0003099,7]
[340197779,1728822641878,-349.684566,0.0003099,7]
[340197780,1728822641888,-349.684566,0.0003099,7]
[340197781,1728822641898,-237.691551,0.0003099,7]
[340197782,1728822641907,-151.0,0.0003099,7]
[340197783,1728822641916,-237.691551,0.0003099,7]
[340197784,1728822641926,-583.953533,0.0003099,7]
[340197785,1728822641935,-583.953533,0.0003099,7]
[340197786,1728822641945,-190.8,0.00031,2]
[340197787,1728822641955,-43393.32,0.00031,5]
[340197788,1728822641964,-151.0,0.00031,7]
[340197789,1728822641974,-152.0,0.00031,15]
[340197790,1728822641984,-150.112233,0.00031,10]
[340197791,1728822641995,-1000.0,0.00031027,120]
[340197792,1728822642006,-200.0,0.0003108,24]
[340197793,1728822642015,-1000.0,0.00031301,120]
[340197794,1728822642026,-600.0,0.00031363,2]
[340197795,1728822642035,-150.112233,0.000314,9]
[340197796,1728822642045,-1500.0,0.0003141,5]
[340197797,1728822642058,-1500.0,0.0003141,5]
[340197798,1728822642069,-1500.0,0.0003141,5]
[340197799,1728822642080,-1500.0,0.0003141,5]
[340197800,1728822642091,-250.0,0.00031421,5]
[340197801,1728822642101,-194.7,0.00031448,3]
[340197802,1728822642112,-506.0,0.00031496,6]
[340197803,1728822642122,-500.0,0.00031496,6]
[340197804,1728822642132,-500.0,0.00031496,6]
[340197805,1728822642142,-151.0,0.00031551,7]
[340197806,1728822642152,-151.0,0.00031551,7]
[340197807,1728822642223,-151.0,0.00031551,7]
[340197808,1728822642233,-151.0,0.00031551,7]
[340197809,1728822642243,-151.0,0.00031551,2]
[340197810,1728822642252,-151.0,0.00031551,7]
[340197811,1728822642262,-20924.7152459,0.00031561,5]
[340197812,1728822642273,-256.592136,0.00031561,7]
[340197813,1728822642283,-215.391413,0.00031561,2]
[340197814,1728822642294,-151.0,0.00031561,7]
[340197815,1728822642305,-151.0,0.00031561,7]
[340197816,1728822642315,-151.0,0.00031561,7]
[340197817,1728822642326,-151.0,0.00031561,7]
[340197818,1728822642337,-151.0,0.00031561,7]
[340197819,1728822642350,-151.0,0.00031561,7]
[340197820,1728822642361,-151.0,0.00031561,7]
[340197821,1728822642373,-151.0,0.00031561,7]
[340197822,1728822642383,-151.0,0.00031561,7]
[340197823,1728822642394,-151.0,0.00031561,7]
[340197824,1728822642405,-151.0,0.00031561,7]
[340197825,1728822642415,-151.0,0.00031561,7]
[340197826,1728822642431,-179.683489,0.00031561,7]
[340197827,1728822642440,-254.129864,0.00031561,7]
[340197828,1728822642450,-151.0,0.00031561,7]
[340197829,1728822642459,-7938.13175052,0.00031565,4]
[340197830,1728822642469,-500.0,0.00031573,5]
[340197831,1728822642478,-500.0,0.00031573,5]
[340197832,1728822642488,-1000.0,0.00031575,120]
[340197833,1728822642498,-600.0,0.0003169,2]
[340197834,1728822642507,-150.112233,0.000318,10]
[340197835,1728822642517,-180.205534,0.00031808,2]
[340197836,1728822642526,-1000.0,0.00031842,5]
[340197837,1728822642536,-1000.0,0.00031849,120]
[340197838,1728822642547,-4398.00840794,0.00031852,2]
[340197839,1728822642557,-319.08509737,0.00031947,5]
[340197840,1728822642566,-350.0,0.00031968,5]
[340197841,1728822642575,-500.0,0.00031973,5]
[340197842,1728822642585,-150.0,0.00031973,5]
[340197843,1728822642594,-501.41845279,0.0003198,12]
[340197844,1728822642603,-502.483605,0.0003199,12]
[340197845,1728822642613,-7938.13175052,0.0003199,4]
[340197846,1728822642623,-34932.28995042,0.00032,5]
[340197847,1728822642632,-1000.0,0.00032,3]
[340197848,1728822642642,-200.0,0.00032,120]
[340197849,1728822642651,-1680.0,0.00032,5]
[340197850,1728822642660,-167.73542667,0.00032,30]
[340197851,1728822642672,-151.0,0.00032,7]
[340197852,1728822642681,-151.0,0.00032,7]
[340197853,1728822642690,-151.0,0.00032,7]
[340197854,1728822642700,-151.0,0.00032,7]
[340197855,1728822642709,-151.0,0.00032,7]
[340197856,1728822642718,-151.0,0.00032,7]
[340197857,1728822642728,-151.0,0.00032,7]
[340197858,1728822642737,-151.0,0.00032,7]
[340197859,1728822642746,-151.0,0.00032,7]
[340197860,1728822642755,-151.0,0.00032,7]
[340197861,1728822642764,-994.131341,0.00032,7]
[340197862,1728822642776,-151.0,0.00032,7]
[340197863,1728822642787,-151.0,0.00032,7]
[340197864,1728822642796,-244.32937,0.00032,7]
[340197865,1728822642807,-994.131341,0.00032,7]
[340197866,1728822642816,-151.0,0.00032,7]
[340197867,1728822642826,-151.0,0.00032,7]
[340197868,1728822642836,-151.0,0.00032,7]
[340197869,1728822642846,-151.0,0.00032,7]
[340197870,1728822642856,-151.0,0.00032,7]
[340197871,1728822642866,-151.0,0.00032,7]
[340197872,1728822642875,-151.0,0.00032,7]
[340197873,1728822642885,-151.0,0.00032,7]
[340197874,1728822642894,-283.874491,0.00032,7]
[340197875,1728822642904,-283.874491,0.00032,7]
[340197876,1728822642914,-151.0,0.00032,7]
[340197877,1728822642928,-151.0,0.00032,7]
[340197878,1728822642938,-151.0,0.00032,7]
[340197879,1728822642947,-172.0,0.00032,2]
[340197880,1728822642958,-168.602483,0.00032,7]
[340197881,1728822642968,-168.602483,0.00032,7]
[340197882,1728822642978,-151.0,0.00032,7]
[340197883,1728822642988,-349.684566,0.00032,7]
[340197884,1728822642999,-349.684566,0.00032,7]
[340197885,1728822643010,-237.691551,0.00032,7]
[340197886,1728822643020,-151.0,0.00032,7]
[340197888,1728822643030,-237.691551,0.00032,7]
[340197889,1728822643041,-583.953533,0.00032,7]
[340197890,1728822643051,-583.953533,0.00032,7]
[340197891,1728822643063,-600.0,0.00032017,2]
[340197892,1728822643075,-506.0,0.00032044,6]
[340197893,1728822643087,-511.33295984,0.00032044,6]
[340197894,1728822643098,-503.683399,0.00032044,6]
[340197895,1728822643109,-1000.0,0.00032123,120]
[340197896,1728822643118,-150.112233,0.000322,7]
[340197897,1728822643130,-1000.0,0.00032342,5]
[340197898,1728822643141,-600.0,0.00032343,2]
[340197899,1728822643151,-1000.0,0.00032397,120]
[340197900,1728822643162,-823.0,0.00032429,2]
[340197901,1728822643174,-506.12859951,0.00032483,10]
[340197902,1728822643187,-500.0,0.00032483,10]
[340197903,1728822643198,-500.0,0.00032483,10]
[340197904,1728822643208,-854.73081106,0.00032483,10]
[340197905,1728822643217,-500.0,0.00032483,10]
[340197906,1728822643227,-450.0,0.00032516,5]
[340197907,1728822643241,-250.0,0.00032521,5]
[340197908,1728822643251,-152.0,0.0003255,14]
[340197909,1728822643261,-506.0,0.00032592,6]
[340197910,1728822643271,-150.112233,0.000326,8]
[340197911,1728822643282,-23814.3952516,0.0003266,4]
[340197912,1728822643291,-187.53,0.00032669,2]
[340197913,1728822643300,-187.53,0.00032669,2]
[340197914,1728822643310,-187.53,0.00032669,2]
[340197915,1728822643319,-187.53,0.00032669,2]
[340197916,1728822643330,-187.53,0.00032669,2]
[340197917,1728822643341,-187.53,0.00032669,2]
[340197918,1728822643356,-187.53,0.00032669,2]
[340197919,1728822643367,-187.53,0.00032669,2]
[340197920,1728822643377,-187.53,0.00032669,2]
[340197921,1728822643388,-187.53,0.00032669,2]
[340197922,1728822643399,-50815.8842819,0.0003267,15]
[340197923,1728822643409,-32487.67636868,0.0003267,15]
[340197924,1728822643421,-76946.71095691,0.0003267,2]
[340197925,1728822643430,-151.0,0.0003267,7]
[340197926,1728822643439,-151.0,0.0003267,7]
[340197927,1728822643450,-151.0,0.0003267,7]
[340197928,1728822643460,-151.0,0.0003267,7]
[340197929,1728822643470,-151.0,0.0003267,7]
[340197930,1728822643481,-154.427562,0.0003267,7]
[340197931,1728822643492,-151.0,0.0003267,7]
[340197932,1728822643502,-151.0,0.0003267,7]
[340197933,1728822643513,-248.27282,0.0003267,7]
[340197934,1728822643581,-151.0,0.0003267,7]
[340197935,1728822643591,-151.0,0.0003267,7]
[340197936,1728822643602,-151.0,0.0003267,7]
[340197937,1728822643613,-151.0,0.0003267,7]
[340197939,1728822643623,-151.0,0.0003267,7]
[340197941,1728822643633,-151.0,0.0003267,7]
[340197943,1728822643643,-151.0,0.0003267,7]
[340197945,1728822643654,-151.0,0.0003267,7]
[340197947,1728822643664,-151.0,0.0003267,7]
[340197949,1728822643675,-151.0,0.0003267,7]
[340197951,1728822643686,-151.0,0.0003267,7]
[340197952,1728822643697,-151.0,0.0003267,7]
[340197953,1728822643709,-994.131341,0.0003267,7]
[340197954,1728822643719,-151.0,0.0003267,7]
[340197955,1728822643729,-151.0,0.0003267,7]
[340197956,1728822643740,-994.131341,0.0003267,7]
[340197957,1728822643749,-151.0,0.0003267,7]
[340197958,1728822643758,-76921.65444807,0.0003267,2]
[340197959,1728822643770,-151.0,0.0003267,7]
[340197960,1728822643782,-151.0,0.0003267,7]
[340197961,1728822643791,-289.450273,0.0003267,7]
[340197962,1728822643803,-151.0,0.0003267,7]
[340197963,1728822643814,-3000.0,0.0003267,90]
[340197964,1728822643824,-3000.0,0.0003267,90]
[340197965,1728822643834,-3000.0,0.0003267,90]
[340197966,1728822643845,-3000.0,0.0003267,90]
[340197967,1728822643855,-3000.0,0.0003267,90]
[340197968,1728822643865,-3000.0,0.0003267,90]
[340197969,1728822643873,-3000.0,0.0003267,90]
[340197970,1728822643883,-176.051711,0.0003267,90]
[340197971,1728822643892,-151.0,0.0003267,7]
[340197972,1728822643903,-151.0,0.0003267,7]
[340197973,1728822643913,-283.874491,0.0003267,7]
[340197974,1728822643924,-283.874491,0.0003267,7]
[340197975,1728822643934,-151.0,0.0003267,7]
[340197976,1728822643944,-151.0,0.0003267,7]
[340197977,1728822643956,-151.0,0.0003267,7]
[340197978,1728822643965,-168.602483,0.0003267,7]
[340197979,1728822643976,-168.602483,0.0003267,7]
[340197980,1728822643986,-151.0,0.0003267,7]
[340197981,1728822643997,-349.684566,0.0003267,7]
[340197982,1728822644008,-349.684566,0.0003267,7]
[340197983,1728822644018,-349.684566,0.0003267,7]
[340197984,1728822644028,-349.684566,0.0003267,7]
[340197985,1728822644038,-600.0,0.0003267,2]
[340197986,1728822644048,-237.691551,0.0003267,7]
[340197987,1728822644059,-151.0,0.0003267,7]
[340197988,1728822644069,-237.691551,0.0003267,7]
[340197989,1728822644078,-151.0,0.0003267,7]
[340197990,1728822644089,-237.691551,0.0003267,7]
[340197991,1728822644098,-237.691551,0.0003267,7]
[340197992,1728822644108,-583.953533,0.0003267,7]
[340197993,1728822644117,-583.953533,0.0003267,7]
[340197994,1728822644127,-1000.0,0.00032671,120]
[340197995,1728822644136,-492.9624492,0.00032744,90]
[340197996,1728822644147,-1000.0,0.00032876,2]
[340197997,1728822644157,-1000.0,0.00032876,2]
[340197998,1728822644168,-1000.0,0.00032876,2]
[340197999,1728822644178,-1000.0,0.00032876,2]
[340198000,1728822644189,-1000.0,0.00032876,2]
[340198001,1728822644199,-653.34607827,0.00032876,2]
[340198002,1728822644209,-151.0,0.00032876,7]
[340198003,1728822644218,-283.874491,0.00032876,7]
[340198004,1728822644228,-283.874491,0.00032876,7]
[340198005,1728822644238,-151.0,0.00032876,7]
[340198006,1728822644248,-168.602483,0.00032876,7]
[340198007,1728822644258,-168.602483,0.00032876,7]
[340198008,1728822644267,-151.0,0.00032876,7]
[340198009,1728822644276,-583.953533,0.00032876,7]
[340198010,1728822644285,-583.953533,0.00032876,7]
[340198011,1728822644295,-643.02479071,0.00032877,2]
[340198012,1728822644305,-188.5349676,0.00032877,120]
[340198013,1728822644316,-8122.08,0.00032877,60]
[340198014,1728822644327,-150.0,0.00032877,5]
[340198015,1728822644337,-194.7,0.00032925,4]
[340198016,1728822644351,-1000.0,0.00032942,5]
[340198017,1728822644361,-1000.0,0.00032942,5]
[340198018,1728822644370,-600.0,0.00032997,2]
[340198019,1728822644381,-57909.74057872,0.00032999,2]
[340198020,1728822644494,-2167.6914798,0.00032999,2]
[340198021,1728822644513,-1609.11,0.00027473,3]
[340198022,1728822644523,-990.89,0.00032999,2]
[340198023,1728822645807,-1372.3210291,0.00032999,2]
[340198033,1728823554380,166.666666,0.00023944,2]
[340198035,1728823599140,-359.8158011,0.00024507,2]
[340198036,1728823599161,-501.92043,0.00024561,2]
[340198037,1728823599182,-170.5295273,0.00024589,2]
[340198038,1728823599203,-166.666666,0.00024597,2]
[340198039,1728823599224,-250.0,0.00024725,2]
[340198040,1728823599244,-150.0,0.00024777,2]
[340198041,1728823599265,-250.0,0.00024793,2]
[340198042,1728823599288,-250.0,0.00024861,2]
[340198043,1728823599310,-250.0,0.00024928,2]
[340198044,1728823599331,-250.0,0.00024996,2]
[340198045,1728823599351,-250.0,0.00025064,2]
[340198046,1728823599371,-250.0,0.00025132,2]
[340198047,1728823599392,-250.0,0.000252,2]
[340198048,1728823599412,-2119.42427399,0.00025204,2]
[340198049,1728823599436,-166.666666,0.0002525,2]
[340198050,1728823599459,-250.0,0.00025267,2]
[340198051,1728823599480,-250.0,0.00025335,2]
[340198052,1728823599500,-153.77540887,0.000254,2]
[340198053,1728823599521,-250.0,0.00025403,2]
[340198054,1728823599544,-250.0,0.00025471,2]
[340198055,1728823599564,-361.205,0.000255,2]
[340198056,1728823599585,-250.0,0.00025539,2]
[340198057,1728823599716,-975.57457074,0.00025549,2]
[340198058,1728823642148,-250.0,0.00025606,2]
[340198059,1728823642178,-152.0,0.0002565,2]
[340198060,1728823642207,-500.0,0.00025673,2]
[340198061,1728823642242,-250.0,0.00025674,2]
[340198062,1728823642272,-2436.53837884,0.00025692,2]
[340198063,1728823642304,-1500.0,0.00025693,2]
[340198064,1728823642334,-300.0,0.00025693,2]
[340198065,1728823642362,-300.0,0.00025693,2]
[340198066,1728823642390,-204.99421475,0.00025694,2]
[340198067,1728823642414,-12808.13599951,0.00025694,2]
[340198068,1728823651150,-3255.16696919,0.00025639,2]
[340198069,1728823651173,-4498.95815267,0.00025694,2]
[340198070,1728823654103,-564.64253765,0.00025694,2]
[340198113,1728823838670,-162.18498,0.00024916,2]
[340198116,1728823838683,-931.6183535,0.00025694,2]
[340198127,1728823838777,-861.56945798,0.00025694,2]
[340198138,1728823838888,-2077.96317701,0.00025694,2]
[340198145,1728823840552,-3157.11232168,0.00025694,2]
[340198146,1728823840564,-300.0,0.00025738,2]
[340198147,1728823840574,-300.0,0.00025738,2]
[340198148,1728823840585,-1141.53271952,0.00025739,2]
[340198149,1728823840944,193.66046304,0.00024816,2]
[340198157,1728823843633,-1858.46728048,0.00025739,2]
[340198158,1728823843643,-250.0,0.00025742,2]
[340198159,1728823843652,-238.0759943,0.00025784,2]
[340198160,1728823843661,-250.0,0.0002581,2]
[340198161,1728823843670,-995.710641,0.00025835,2]
[340198162,1728823843679,-500.0,0.00025873,2]
[340198163,1728823843689,-500.0,0.00025873,2]
[340198164,1728823843699,-151.12303259,0.00025873,2]
[340198165,1728823843708,-500.0,0.00025873,2]
[340198166,1728823843718,-500.0,0.00025873,2]
[340198167,1728823843731,-250.0,0.00025878,2]
[340198168,1728823843741,-322.1332747,0.00025897,2]
[340198169,1728823843751,-166.666666,0.00025902,2]
[340198170,1728823843760,-250.0,0.00025945,2]
[340198171,1728823843770,-1500.0,0.00025967,2]
[340198172,1728823843782,-250.0,0.00026013,2]
[340198173,1728823843791,-917.54662011,0.00026241,2]
[340198174,1728823843801,-501.93079448,0.00026408,2]
[340198175,1728823843812,-500.0,0.00026408,2]
[340198176,1728823843822,-13.73449512,0.00026408,2]
[340198177,1728823843839,-486.26550488,0.00026408,2]
[340198178,1728823843849,-500.0,0.00026408,2]
[340198179,1728823843860,-500.0,0.00026408,2]
[340198180,1728823843872,-500.0,0.00026408,2]
[340198181,1728823843882,-166.666666,0.00026555,2]
[340198182,1728823843893,-167.27,0.00026644,2]
[340198183,1728823843904,-345.10852106,0.000271,2]
[340198184,1728823844237,-154.89147894,0.000271,2]
[340198185,1728823844247,-166.666666,0.00027208,2]
[340198186,1728823844259,-500.0,0.00027242,2]
[340198187,1728823844269,-109.06167106,0.00027397,2]
[340198191,1728823846486,-301.24211674,0.00027397,2]
[340198192,1728823846654,-59.5838012,0.00027397,2]
[340198193,1728823846663,-500.0,0.00027493,2]
[340198194,1728823846672,-287.34872825,0.00027508,2]
[340198195,1728823846681,-358.65465433,0.00027778,5]
[340198199,1728824820814,3800.0,0.00023,2]
[340198200,1728824844173,-166.666666,0.00024044,2]
[340198201,1728824844197,-497.85532,0.00024188,2]
[340198202,1728824844221,-166.666666,0.000247,2]
[340198203,1728824844243,-300.0,0.00024999,2]
[340198204,1728824844265,-252.31,0.00025,2]
[340198205,1728824844285,-1000.0,0.00025,2]
[340198206,1728824844308,-166.227717,0.00025139,2]
[340198207,1728824844334,-147.44173174,0.00025265,2]
[340198208,1728824959122,-300.0,0.00025265,2]
[340198209,1728824959143,-300.0,0.00025265,2]
[340198210,1728824959165,-21007.73423954,0.00025266,2]
[340198211,1728824963123,-3892.26576046,0.00025266,2]
[340198212,1728824963144,-204.99421476,0.00025279,2]
[340198213,1728824963164,-3000.0,0.0002528,2]
[340198214,1728824963184,-166.666666,0.00025355,2]
[340198215,1728824995972,3000.0,0.00024537,2]
[340198217,1728825014550,250.0,0.00025455,2]
[340198218,1728825014780,250.0,0.00025525,2]
[340198219,1728825015014,250.0,0.00025595,2]
[340198220,1728825015230,250.0,0.00025664,2]
[340198221,1728825015438,250.0,0.00025734,2]
[340198253,1728825032665,-694.63468334,0.00025774,4]
[340198254,1728825032675,-250.0,0.00025804,2]
[340198255,1728825032685,-250.0,0.00025874,2]
[340198256,1728825032695,-2848.27109805,0.000259,2]
[340198257,1728825032705,-250.0,0.00025944,2]
[340198258,1728825032714,-1000.0,0.00026,7]
[340198259,1728825032724,-1010.0,0.00026,4]